fUSD/lending_fUSD_20260319
["ID","MTS","AMOUNT","RATE_DAILY","PERIOD"]
[408557022,1773887487562,-497.442973,0.000149,2]
[408557023,1773887487572,-497.442973,0.000149,2]
[408557024,1773887487582,-151.0,0.000149,2]
[408557025,1773887487592,-503.170085,0.000149,2]
[408557026,1773887487602,-151.0,0.000149,2]
[408557027,1773887487613,-503.170085,0.000149,2]
[408557028,1773887487623,-151.0,0.000149,2]
[408557029,1773887487633,-503.170085,0.000149,2]
[408557030,1773887487644,-503.170085,0.000149,2]
[408557031,1773887487654,-154.056591,0.000149,2]
[408557032,1773887487664,-154.056591,0.000149,2]
[408557033,1773887487675,-154.056591,0.000149,2]
[408557034,1773887487684,-154.056591,0.000149,2]
[408557035,1773887487694,-4518.228758,0.000149,2]
[408557036,1773887487704,-253.911244,0.000149,2]
[408557037,1773887487714,-4518.228758,0.000149,2]
[408557038,1773887487725,-253.911244,0.000149,2]
[408557039,1773887487735,-4518.228758,0.000149,2]
[408557040,1773887487745,-253.911244,0.000149,2]
[408557041,1773887487755,-4518.228758,0.000149,2]
[408557042,1773887487766,-253.911244,0.000149,2]
[408557043,1773887487776,-162.725681,0.000149,2]
[408557044,1773887487787,-151.0,0.000149,2]
[408557045,1773887487797,-151.0,0.000149,2]
[408557046,1773887487808,-151.0,0.000149,2]
[408557047,1773887487818,-186.674432,0.000149,2]
[408557048,1773887487829,-151.0,0.000149,2]
[408557049,1773887487839,-151.0,0.000149,2]
[408557050,1773887487849,-151.0,0.000149,2]
[408557051,1773887487860,-151.0,0.000149,2]
[408557052,1773887487870,-151.0,0.000149,2]
[408557053,1773887487880,-186.674432,0.000149,2]
[408557054,1773887487890,-151.0,0.000149,2]
[408557055,1773887487899,-186.674432,0.000149,2]
[408557056,1773887487910,-151.0,0.000149,2]
[408557057,1773887487920,-151.0,0.000149,2]
[408557058,1773887487930,-186.674432,0.000149,2]
[408557059,1773887487941,-1405.658705,0.000149,2]
[408557060,1773887487951,-1405.658705,0.000149,2]
[408557061,1773887487961,-1405.658705,0.000149,2]
[408557062,1773887487972,-1405.6587,0.000149,2]
[408557063,1773887487982,-151.0,0.000149,2]
[408557064,1773887487996,-256.813338,0.000149,2]
[408557065,1773887488006,-1585.436337,0.000149,2]
[408557066,1773887488017,-1585.436337,0.000149,2]
[408557067,1773887488027,-1585.436337,0.000149,2]
[408557068,1773887488037,-1585.436344,0.000149,2]
[408557069,1773887488048,-516.130485,0.000149,2]
[408557070,1773887488061,-516.130485,0.000149,2]
[408557071,1773887488076,-516.130485,0.000149,2]
[408557072,1773887488087,-516.130477,0.000149,2]
[408557073,1773887488103,-700.0,0.000149,5]
[408557074,1773887488114,-300.0,0.000149,5]
[408557075,1773887488125,-157.51383691,0.00014928,2]
[408557076,1773887488136,-270.0,0.00014962,2]
[408557077,1773887488147,-169.09,0.00014981,2]
[408557078,1773887488158,-151.0,0.00014992,2]
[408557079,1773887488169,-151.0,0.00014992,2]
[408557080,1773887488180,-163.82462746,0.00014997,2]
[408557081,1773887488192,-2062.81395263,0.00015,2]
[408557082,1773887488204,-8030.60240922,0.00015,2]
[408557083,1773887488215,-151.0,0.00015,2]
[408557084,1773887488226,-347.58021,0.00015,2]
[408557085,1773887488238,-347.58021,0.00015,2]
[408557086,1773887488249,-347.58021,0.00015,2]
[408557087,1773887488260,-347.58021,0.00015,2]
[408557088,1773887488271,-475911.77123907,0.00015,3]
[408557089,1773887488282,-250.0,0.00015,2]
[408557090,1773887488292,-3182.24180802,0.00015,14]
[408557091,1773887488305,-168.0,0.00015012,2]
[408557092,1773887488315,-177.0,0.0001504,2]
[408557093,1773887488325,-2402.0,0.0001504,2]
[408557094,1773887488337,-2402.0,0.0001504,2]
[408557095,1773887488349,-869.12,0.00015065,2]
[408557096,1773887488364,-470.0,0.00015068,2]
[408557097,1773887488377,-879.01,0.00015068,2]
[408557098,1773887488391,-2815.91,0.00015068,2]
[408557099,1773887488403,-900.0,0.00015068,2]
[408557100,1773887488417,-850.0,0.00015087,2]
[408557101,1773887488429,-850.0,0.00015087,2]
[408557102,1773887488442,-850.0,0.00015087,2]
[408557103,1773887488453,-850.0,0.00015087,2]
[408557104,1773887488465,-850.0,0.00015087,2]
[408557105,1773887488477,-850.0,0.00015087,2]
[408557106,1773887488487,-850.0,0.00015087,2]
[408557107,1773887488499,-850.0,0.00015087,2]
[408557108,1773887488510,-850.0,0.00015087,2]
[408557109,1773887488521,-402.0,0.00015087,2]
[408557110,1773887488533,-279.7,0.00015106,2]
[408557111,1773887488545,-2402.0,0.0001514,2]
[408557112,1773887488557,-2402.0,0.0001514,2]
[408557113,1773887488570,-2000.0,0.00015164,2]
[408557114,1773887488583,-270.0,0.00015187,2]
[408557115,1773887488594,-470.501002,0.00015205,2]
[408557116,1773887488607,-279.7,0.00015211,2]
[408557117,1773887488618,-274.98374608,0.00015228,2]
[408557118,1773887488629,-270.0,0.00015261,2]
[408557119,1773887488641,-1600.0,0.00015264,2]
[408557120,1773887488652,-151.0,0.00015273,2]
[408557121,1773887488662,-151.0,0.00015273,2]
[408557122,1773887488674,-1517.64,0.000153,2]
[408557123,1773887488686,-8549.03,0.000153,2]
[408557124,1773887488698,-4518.46,0.000153,2]
[408557125,1773887488709,-3664.69,0.000153,2]
[408557126,1773887488720,-585318.16,0.000153,2]
[408557127,1773887488734,-151.0,0.000153,2]
[408557128,1773887488744,-151.0,0.000153,2]
[408557129,1773887488755,-151.0,0.000153,2]
[408557130,1773887488767,-151.0,0.000153,2]
[408557131,1773887488778,-347.58021,0.000153,2]
[408557132,1773887488789,-347.58021,0.000153,2]
[408557133,1773887488800,-347.58021,0.000153,2]
[408557134,1773887488811,-347.58021,0.000153,2]
[408557135,1773887488823,-151.0,0.000153,2]
[408557136,1773887488835,-151.0,0.000153,2]
[408557137,1773887488847,-219.271038,0.000153,2]
[408557138,1773887488859,-257.18017,0.000153,2]
[408557139,1773887488872,-257.18017,0.000153,2]
[408557140,1773887488884,-257.18017,0.000153,2]
[408557141,1773887488895,-257.180178,0.000153,2]
[408557142,1773887488905,-497.442973,0.000153,2]
[408557143,1773887488915,-497.442973,0.000153,2]
[408557144,1773887488925,-497.442973,0.000153,2]
[408557145,1773887488936,-497.442976,0.000153,2]
[408557146,1773887488946,-151.0,0.000153,2]
[408557147,1773887488956,-503.170085,0.000153,2]
[408557148,1773887488967,-151.0,0.000153,2]
[408557149,1773887488981,-503.170085,0.000153,2]
[408557150,1773887488998,-283.157172,0.000153,2]
[408557151,1773887489011,-503.170085,0.000153,2]
[408557152,1773887489023,-503.170091,0.000153,2]
[408557153,1773887489037,-154.056591,0.000153,2]
[408557154,1773887489053,-154.056591,0.000153,2]
[408557155,1773887489067,-154.056591,0.000153,2]
[408557156,1773887489085,-154.0566,0.000153,2]
[408557157,1773887489107,-4518.228758,0.000153,2]
[408557158,1773887489121,-253.911244,0.000153,2]
[408557159,1773887489137,-4518.228758,0.000153,2]
[408557160,1773887489151,-253.911244,0.000153,2]
[408557161,1773887489168,-4518.228758,0.000153,2]
[408557162,1773887489184,-253.911244,0.000153,2]
[408557163,1773887489199,-4518.228761,0.000153,2]
[408557164,1773887489215,-253.911251,0.000153,2]
[408557165,1773887489229,-151.0,0.000153,2]
[408557166,1773887489243,-186.674432,0.000153,2]
[408557167,1773887489257,-151.0,0.000153,2]
[408557168,1773887489270,-186.674432,0.000153,2]
[408557169,1773887489286,-186.674432,0.000153,2]
[408557170,1773887489300,-151.0,0.000153,2]
[408557171,1773887489313,-186.674432,0.000153,2]
[408557172,1773887489323,-279.69884005,0.00015317,2]
[408557173,1773887489335,-869.12,0.00015339,2]
[408557174,1773887489349,-883.04,0.00015342,2]
[408557175,1773887489363,-2000.0,0.00015342,2]
[408557176,1773887489374,-2000.0,0.00015342,2]
[408557177,1773887489384,-2000.0,0.00015342,2]
[408557178,1773887489399,-455.72571989,0.00015342,2]
[408557179,1773887489411,-2000.0,0.00015342,2]
[408557180,1773887489422,-232.68961964,0.00015342,2]
[408557181,1773887489436,-2000.0,0.00015342,2]
[408557182,1773887489447,-931.42701484,0.00015342,2]
[408557183,1773887489459,-2000.0,0.00015342,2]
[408557184,1773887489471,-2000.0,0.00015342,2]
[408557185,1773887489485,-1499.94158246,0.00015342,2]
[408557186,1773887489499,-2000.0,0.00015342,2]
[408557187,1773887489510,-2000.0,0.00015342,2]
[408557188,1773887489523,-1676.1614452,0.00015342,2]
[408557189,1773887489535,-2000.0,0.00015342,2]
[408557190,1773887489547,-578.73590627,0.00015342,2]
[408557191,1773887490846,-1000.0,0.00011811,2]
[408557192,1773887490859,-500.0,0.00013698,2]
[408557193,1773887490880,-500.0,0.00013698,2]
[408557194,1773887490900,-500.0,0.00013698,2]
[408557195,1773887490922,-500.0,0.00013698,2]
[408557196,1773887490946,-500.0,0.00013698,2]
[408557197,1773887490970,-367.09639712,0.00013698,2]
[408557198,1773887490993,-500.0,0.00013698,2]
[408557199,1773887491014,-467.87972842,0.00013698,2]
[408557200,1773887491030,-623.714,0.00013725,2]
[408557201,1773887491047,-603.48027581,0.00015342,2]
[408557202,1773887491060,-1065.02970499,0.00015342,2]
[408557203,1773887491076,-1416.46067137,0.00015342,2]
[408557204,1773887491095,-2000.0,0.00015342,2]
[408557205,1773887491109,-2000.0,0.00015342,2]
[408557206,1773887491121,-1128.59751431,0.00015342,2]
[408557207,1773887491138,-547.28628106,0.00015342,2]
[408557208,1773887491151,-851.4077328,0.00015342,2]
[408557209,1773887491169,-1148.5922672,0.00015342,2]
[408557210,1773887491183,-837.81409263,0.00015342,2]
[408557211,1773887491197,-2000.0,0.00015342,2]
[408557212,1773887491212,-2000.0,0.00015342,2]
[408557213,1773887491503,-2000.0,0.00015342,2]
[408557214,1773887491514,-1221.31567398,0.00015342,2]
[408557215,1773887491524,-2000.0,0.00015342,2]
[408557216,1773887491533,-537.27796619,0.00015342,2]
[408557217,1773887493854,1001.0,0.0003013,120]
[408557218,1773887494145,-10000.01,0.0001181,2]
[408557219,1773887494159,-10000.01,0.0001181,2]
[408557220,1773887494173,-10000.01,0.0001181,2]
[408557221,1773887494187,-10000.01,0.0001181,2]
[408557222,1773887494897,1317.83,0.00030136,120]
[408557223,1773887495968,1170.27,0.00030136,120]
[408557224,1773887496489,500.0,0.00030136,120]
[408557225,1773887497920,-10000.01,0.0001181,2]
[408557226,1773887498030,-10000.01,0.0001181,2]
[408557227,1773887498157,-10000.01,0.0001181,2]
[408557228,1773887498262,-4479.6345,0.0001181,2]
[408557229,1773887498284,-1040.741,0.0001181,2]
[408557230,1773887502131,500.0,0.00030136,120]
[408557231,1773887506788,1602.31,0.00030136,120]
[408557232,1773887512625,500.0,0.00030136,120]
[408557233,1773887516344,2258.22,0.00030136,120]
[408557234,1773887535991,500.0,0.00030136,120]
[408557235,1773887537700,817.42,0.00030136,120]
[408557236,1773887548484,232.20444566,0.0003013,120]
[408557237,1773887557091,500.0,0.00030136,120]
[408557238,1773887561984,500.0,0.00030136,120]
[408557239,1773887565599,500.0,0.00030136,120]
[408557252,1773887571882,985.75,0.00030136,120]
[408557253,1773887572289,500.0,0.00030136,120]
[408557263,1773887578033,768.49,0.00030136,120]
[408557264,1773887578355,500.0,0.00030136,120]
[408557265,1773887578433,822.7,0.00030136,120]
[408557277,1773887587653,500.0,0.00030136,120]
[408557279,1773887587957,519.2,0.00030136,120]
[408557335,1773887608394,711.69,0.00030136,120]
[408557363,1773887682536,500.0,0.00030136,120]
[408557364,1773887686951,500.0,0.00030136,120]
[408557365,1773887700391,500.0,0.00030136,120]
[408557366,1773887704100,167.98963358,0.00030136,120]
[408557367,1773887710155,21224.09,0.00030136,120]
[408557368,1773887715881,500.0,0.00030136,120]
[408557369,1773887727159,500.0,0.00030136,120]
[408557370,1773887751085,783.36,0.00030136,120]
[408557371,1773887766888,-200.0,0.000115,4]
[408557372,1773887767117,-1452.11840992,0.0001155,2]
[408557373,1773887767145,-400.0,0.000116,4]
[408557374,1773887767178,-700.0,0.000117,4]
[408557375,1773887767206,-1648.03773246,0.0001171,2]
[408557376,1773887767232,-314.10737684,0.0001171,2]
[408557377,1773887767326,500.0,0.00030136,120]
[408557378,1773887767364,-663.14113109,0.00011711,2]
[408557379,1773887767392,-343.0,0.00011781,2]
[408557380,1773887767422,-900.0,0.000118,4]
[408557381,1773887767449,-300.0,0.00011807,2]
[408557382,1773887767479,-151.0,0.00011807,2]
[408557383,1773887767507,-151.0,0.00011807,2]
[408557384,1773887767535,-1200.0,0.00011808,2]
[408557385,1773887767563,-300.0,0.00011808,2]
[408557386,1773887767594,-519.32677166,0.00011809,3]
[408557387,1773887767620,-150.0,0.00011809,2]
[408557388,1773887767682,-2500.0,0.0001181,2]
[408557389,1773887768088,-1247.0741945,0.0001181,2]
[408557390,1773887768103,-5000.01,0.0001181,2]
[408557391,1773887768195,-10000.01,0.0001181,2]
[408557392,1773887769791,-438.78915043,0.000117,2]
[408557393,1773887769819,-151.0,0.00011807,2]
[408557394,1773887769864,-8820.43169914,0.0001181,2]
[408557395,1773887769891,-10000.01,0.0001181,2]
[408557396,1773887787044,500.0,0.00030136,120]
[408557397,1773887796820,500.0,0.00030136,120]
[408557398,1773887798979,500.0,0.00030136,120]
[408557399,1773887804160,500.0,0.00030136,120]
[408557400,1773887811517,788.42,0.00030136,120]
[408557401,1773887811760,500.0,0.00030136,120]
[408557402,1773887826771,500.0,0.00030136,120]
[408557403,1773887855451,500.0,0.00030136,120]
[408557404,1773887889388,904.49,0.00030136,120]
[408557405,1773887899388,824.93,0.00030136,120]
[408557406,1773887905167,500.0,0.00030136,120]
[408557407,1773887914848,20339.75,0.00030136,120]
[408557408,1773887938876,500.0,0.00030136,120]
[408557409,1773887941886,500.0,0.00030136,120]
[408557410,1773887957700,500.0,0.00030136,120]
[408557411,1773887968502,500.0,0.00030136,120]
[408557412,1773887973416,500.0,0.0001191,10]
[408557413,1773887973649,500.0,0.0001191,11]
[408557414,1773887973902,344.69754148,0.0001191,12]
[408557415,1773887975758,577.15,0.00030136,120]
[408557416,1773887988578,500.0,0.00030136,120]
[408557417,1773887990097,750.72,0.00030136,120]
[408557418,1773887991762,500.0,0.00030136,120]
[408557419,1773888004747,500.0,0.00030136,120]
[408557420,1773888006704,761.42,0.00030136,120]
[408557421,1773888016435,500.0,0.00030136,120]
[408557422,1773888025418,500.0,0.00030136,120]
[408557423,1773888028914,500.0,0.00030136,120]
[408557424,1773888033808,500.0,0.00030136,120]
[408557425,1773888036998,939.95,0.00030136,120]
[408557426,1773888042598,500.0,0.00030136,120]
[408557427,1773888042654,884.66,0.00030136,120]
[408557428,1773888055067,755.57,0.00030136,120]
[408557429,1773888060170,500.0,0.00030136,120]
[408557430,1773888061814,500.0,0.00030136,120]
[408557431,1773888066793,938.63,0.00030136,120]
[408557432,1773888071689,500.0,0.00030136,120]
[408557433,1773888086579,500.0,0.00030136,120]
[408557434,1773888087162,1262.92,0.00030136,120]
[408557435,1773888090271,500.0,0.00030136,120]
[408557436,1773888097891,500.0,0.00030136,120]
[408557437,1773888107629,1121.51,0.00030136,120]
[408557438,1773888120901,500.0,0.00030136,120]
[408557439,1773888122492,1535.55,0.00030136,120]
[408557440,1773888129516,500.0,0.00030136,120]
[408557441,1773888131608,2164.13,0.00030136,120]
[408557442,1773888136177,776.33,0.00030136,120]
[408557443,1773888149105,500.0,0.00030136,120]
[408557444,1773888154116,500.0,0.00030136,120]
[408557445,1773888156637,19492.26,0.00030136,120]
[408557446,1773888163106,944.67,0.00030136,120]
[408557447,1773888171679,847.37,0.00030136,120]
[408557448,1773888173384,503.37,0.00030136,120]
[408557449,1773888178816,500.0,0.00030136,120]
[408557450,1773888189405,500.0,0.00030136,120]
[408557451,1773888196504,736.47,0.00030136,120]
[408557452,1773888225118,500.0,0.00030136,120]
[408557453,1773888226029,682.03,0.00030136,120]
[408557454,1773888229635,-150.0,0.00010959,2]
[408557455,1773888229663,-250.0,0.00011284,2]
[408557456,1773888229692,-193.04786055,0.00011434,2]
[408557457,1773888229719,-1460.9,0.00011507,2]
[408557458,1773888229745,-253.55651067,0.00011534,2]
[408557459,1773888229772,-245.0,0.0001161,2]
[408557460,1773888229797,-193.04786055,0.0001161,2]
[408557461,1773888229825,-300.0,0.00011699,2]
[408557462,1773888229852,-300.0,0.00011699,2]
[408557463,1773888229880,-1160.77268122,0.000117,2]
[408557464,1773888230024,-2906.53953896,0.000117,2]
[408557465,1773888230051,-1561.58768928,0.000117,2]
[408557466,1773888230145,-1063.75554352,0.000117,2]
[408557467,1773888230173,-2893.98153046,0.000117,2]
[408557468,1773888230199,-884.53585204,0.00011709,2]
[408557469,1773888230348,-315.46414796,0.00011709,2]
[408557470,1773888230358,-300.0,0.00011709,2]
[408557471,1773888230367,-150.0,0.00011709,2]
[408557472,1773888230376,-401.11571754,0.0001171,2]
[408557473,1773888230411,-2.64428246,0.0001171,2]
[408557474,1773888230422,-1197.35571754,0.0001171,2]
[408557475,1773888232492,-4289.32132869,0.0001171,2]
[408557476,1773888232514,-1421.36734262,0.0001171,2]
[408557477,1773888235593,-200.0,0.000117,2]
[408557478,1773888235625,-193.1385265,0.0001171,2]
[408557479,1773888235657,-2997.76305173,0.0001171,2]
[408557480,1773888235725,-3218.20684354,0.0001171,2]
[408557481,1773888235756,-4334.38477797,0.0001171,2]
[408557482,1773888235783,-1331.24044406,0.0001171,2]
[408557483,1773888247247,500.0,0.00030136,120]
[408557484,1773888247688,500.0,0.00030136,120]
[408557485,1773888249538,719.44,0.00030136,120]
[408557486,1773888258768,1026.93,0.00030136,120]
[408557487,1773888266619,500.0,0.00030136,120]
[408557488,1773888271529,500.0,0.00030136,120]
[408557489,1773888275241,500.0,0.00030136,120]
[408557490,1773888284515,724.08,0.00030136,120]
[408557491,1773888291041,500.0,0.00030136,120]
[408557492,1773888302234,500.0,0.00030136,120]
[408557493,1773888318612,500.0,0.00030136,120]
[408557494,1773888321130,500.0,0.00030136,120]
[408557496,1773888365059,500.0,0.00030136,120]
[408557497,1773888396693,18680.08,0.00030136,120]
[408557498,1773888414399,500.0,0.00030136,120]
[408557499,1773888424778,500.0,0.00030136,120]
[408557500,1773888431265,500.0,0.00030136,120]
[408557501,1773888457328,500.0,0.00030136,120]
[408557502,1773888474683,500.0,0.00030136,120]
[408557503,1773888484435,500.0,0.00030136,120]
[408557504,1773888495648,500.0,0.00030136,120]
[408557505,1773888504864,500.0,0.00030136,120]
[408557506,1773888508516,689.47,0.00030136,120]
[408557507,1773888517954,500.0,0.00030136,120]
[408557508,1773888523784,751.22,0.00030136,120]
[408557509,1773888528575,390.26684613,0.00030136,120]
[408557510,1773888529410,693.91,0.00030136,120]
[408557511,1773888532949,300.0,0.00030136,120]
[408557512,1773888534585,500.0,0.00030136,120]
[408557513,1773888570050,500.0,0.00030136,120]
[408557514,1773888570090,500.0,0.00030136,120]
[408557515,1773888574679,500.0,0.00030136,120]
[408557516,1773888593839,-1600.0,0.0001084,2]
[408557517,1773888602383,500.0,0.00030136,120]
[408557518,1773888610420,500.0,0.00030136,120]
[408557521,1773888632020,-300.0,0.000115,4]
[408557522,1773888632033,-250.0,0.0001155,2]
[408557523,1773888632045,-245.0,0.0001155,2]
[408557524,1773888632059,-700.0,0.000116,4]
[408557525,1773888632072,-153.28386923,0.0001161,2]
[408557526,1773888632084,-8852.0225589,0.0001161,2]
[408557527,1773888632095,-76966.6386013,0.0001161,2]
[408557528,1773888632109,-1850.0,0.0001161,2]
[408557529,1773888632127,-400.1161207,0.0001161,2]
[408557530,1773888632140,-339.75260614,0.0001161,2]
[408557531,1773888632153,-4192.11405072,0.0001161,2]
[408557532,1773888632217,-17534.79882738,0.0001161,2]
[408557533,1773888632230,-867.29465335,0.0001161,2]
[408557536,1773888632252,-310.55827694,0.0001161,2]
[408557539,1773888632264,-334.02485,0.0001161,2]
[408557540,1773888632277,-511.41,0.0001161,2]
[408557545,1773888633994,17901.75,0.00030136,120]
[408557546,1773888638220,-500.0,0.00011609,2]
[408557547,1773888638230,-195.09084928,0.00011609,2]
[408557548,1773888638240,-500.0,0.00011609,2]
[408557549,1773888638250,-586.71196568,0.00011609,2]
[408557550,1773888638259,-476.24136467,0.00011609,2]
[408557551,1773888638268,-500.0,0.00011609,2]
[408557552,1773888638278,-500.0,0.00011609,2]
[408557553,1773888638287,-500.0,0.00011609,2]
[408557554,1773888638296,-500.0,0.00011609,2]
[408557555,1773888638305,-500.0,0.00011609,2]
[408557556,1773888638315,-500.0,0.00011609,2]
[408557557,1773888638325,-500.0,0.00011609,2]
[408557559,1773888638335,-500.0,0.00011609,2]
[408557560,1773888638344,-500.0,0.00011609,2]
[408557561,1773888638353,-500.0,0.00011609,2]
[408557562,1773888638362,-500.0,0.00011609,2]
[408557563,1773888638372,-500.0,0.00011609,2]
[408557564,1773888638381,-500.0,0.00011609,2]
[408557565,1773888638391,-500.0,0.00011609,2]
[408557566,1773888638402,-500.0,0.00011609,2]
[408557567,1773888638412,-500.0,0.00011609,2]
[408557568,1773888638422,-474.61582037,0.00011609,2]
[408557569,1773888640773,-25.38417963,0.00011609,2]
[408557570,1773888640782,-500.0,0.00011609,2]
[408557571,1773888640791,-500.0,0.00011609,2]
[408557572,1773888640802,-500.0,0.00011609,2]
[408557573,1773888640811,-500.0,0.00011609,2]
[408557574,1773888640821,-500.0,0.00011609,2]
[408557575,1773888640831,-500.0,0.00011609,2]
[408557576,1773888640840,-500.0,0.00011609,2]
[408557577,1773888640850,-500.0,0.00011609,2]
[408557578,1773888640860,-500.0,0.00011609,2]
[408557579,1773888640869,-500.0,0.00011609,2]
[408557580,1773888640879,-500.0,0.00011609,2]
[408557581,1773888640889,-500.0,0.00011609,2]
[408557582,1773888640899,-634.08588965,0.00011609,2]
[408557583,1773888640910,-1396693.29201347,0.0001161,2]
[408557584,1773888640919,-300.0,0.00011699,2]
[408557585,1773888640934,-295.0,0.00011699,2]
[408557586,1773888640944,-150.0,0.00011699,2]
[408557587,1773888640954,-300.0,0.00011699,2]
[408557588,1773888640963,-1200.0,0.00011699,2]
[408557589,1773888640973,-343.35595987,0.000117,2]
[408557590,1773888640982,-655.76170432,0.000117,2]
[408557591,1773888640993,-1000.0,0.000117,4]
[408557592,1773888641002,-55539.04276636,0.000117,2]
[408557593,1773888641012,-2500.0,0.00011703,2]
[408557594,1773888641021,-2911.85465879,0.00011709,2]
[408557595,1773888641031,-6933.10826169,0.0001171,2]
[408557596,1773888641041,-236.35826919,0.0001171,2]
[408557597,1773888641050,-220.30970521,0.0001171,2]
[408557598,1773888641061,-209.4049179,0.0001171,2]
[408557599,1773888641072,-26141.55,0.0001171,2]
[408557600,1773888641082,-64088.97,0.0001171,2]
[408557601,1773888641091,-9999.99,0.0001171,2]
[408557602,1773888641101,-14087.21,0.0001171,2]
[408557603,1773888641111,-3671.02,0.0001171,2]
[408557604,1773888641121,-312.53,0.0001171,2]
[408557605,1773888641131,-1547.13,0.0001171,2]
[408557606,1773888641141,-299.99,0.0001171,2]
[408557607,1773888641151,-150.99,0.0001171,2]
[408557608,1773888641160,-201.88,0.00011755,2]
[408557609,1773888641170,-3998.031,0.00011799,2]
[408557610,1773888641179,-211.285,0.00011799,2]
[408557611,1773888641189,-1400.0,0.000118,4]
[408557612,1773888641198,-235.8476154,0.000118,2]
[408557613,1773888641208,-235.8476154,0.000118,2]
[408557614,1773888641217,-200.0,0.00011803,2]
[408557615,1773888641227,-1062.62658138,0.00011809,3]
[408557616,1773888641236,-9999.99,0.00011809,2]
[408557617,1773888641245,-3202.45,0.00011809,2]
[408557618,1773888641255,-4999.99,0.00011809,2]
[408557619,1773888641264,-999.99,0.00011809,2]
[408557620,1773888641273,-19397.74,0.00011809,2]
[408557621,1773888641283,-150.99,0.00011809,2]
[408557622,1773888641296,-2456.36,0.00011809,2]
[408557623,1773888641305,-9999.99,0.00011809,2]
[408557624,1773888641316,-9999.99,0.00011809,2]
[408557625,1773888641325,-9999.99,0.00011809,2]
[408557626,1773888641334,-1618.05,0.00011809,2]
[408557627,1773888641344,-499.99,0.00011809,2]
[408557628,1773888641353,-8448.51,0.00011809,2]
[408557629,1773888641363,-517.27,0.00011809,2]
[408557630,1773888641372,-32974.6857,0.0001181,2]
[408557631,1773888641383,-2500000.0,0.0001181,2]
[408557632,1773888641393,-1000.0,0.0001181,2]
[408557633,1773888641403,-500.0,0.00011811,2]
[408557634,1773888641413,-8852.02255889,0.00011831,2]
[408557635,1773888641423,-500.0,0.00011873,2]
[408557636,1773888641434,-500.31068947,0.00011873,2]
[408557637,1773888641446,-500.0,0.00011873,2]
[408557638,1773888641456,-500.0,0.00011873,2]
[408557639,1773888641466,-333.46581243,0.00011873,2]
[408557640,1773888641475,-500.0,0.00011873,2]
[408557641,1773888641486,-500.0,0.00011873,2]
[408557642,1773888641498,-501.23260465,0.00011873,2]
[408557643,1773888641509,-500.0,0.00011873,2]
[408557644,1773888641520,-500.2027226,0.00011873,2]
[408557645,1773888641530,-500.5283362,0.00011873,2]
[408557646,1773888641540,-503.12749744,0.00011873,2]
[408557647,1773888641550,-501.72089582,0.00011873,2]
[408557648,1773888641560,-500.47613985,0.00011873,2]